fUST/lending_fUST_20240814
["ID","MTS","AMOUNT","RATE_DAILY","PERIOD"]
[334900789,1723633838855,-587.0,9.459e-05,2]
[334900790,1723633838865,-154.76012181,0.0001,2]
[334900791,1723633838875,-212.53445951,0.0001,2]
[334900792,1723633838884,-20784.67491515,0.0001,2]
[334900793,1723633838894,-1765.67532584,0.00010403,2]
[334900794,1723633838906,-1765.67532584,0.00010403,2]
[334900796,1723633838916,-823.0,0.00010404,2]
[334900799,1723633838926,-600.0,0.00011193,2]
[334900800,1723633838935,-155.0,0.00011445,2]
[334900801,1723633838945,-10192.67169303,0.000119,2]
[334900802,1723633838955,-449644.088001,0.000119,2]
[334900803,1723633838964,-4654.91396992,0.00012089,2]
[334900804,1723633838974,-1681.55171918,0.00012247,2]
[334900805,1723633838983,-4654.9139699,0.00012248,2]
[334900806,1723633838993,-319294.92000936,0.00012336,2]
[334900807,1723633839003,-4654.9139699,0.00012406,2]
[334900808,1723633839013,-4654.9139699,0.00012565,2]
[334900809,1723633839022,-4654.9139699,0.00012723,2]
[334900810,1723633839031,-184.08892,0.00012823,2]
[334900811,1723633839041,-152.624329,0.00012823,2]
[334900812,1723633839051,-155.978725,0.00012823,2]
[334900813,1723633839061,-183.670948,0.00012823,2]
[334900814,1723633839071,-256.888541,0.00012823,2]
[334900815,1723633839080,-220.382852,0.00012823,2]
[334900816,1723633839090,-167.603257,0.00012823,2]
[334900817,1723633839099,-281.725623,0.00012823,2]
[334900818,1723633839109,-324.171123,0.00012823,2]
[334900819,1723633839119,-493.03932546,0.0001295,2]
[334900820,1723633839129,-220.382852,0.00012983,2]
[334900821,1723633839138,-256.888541,0.00012983,2]
[334900822,1723633839148,-281.725623,0.00012983,2]
[334900823,1723633839159,-324.171123,0.00012983,2]
[334900824,1723633839169,-500.0,0.00012986,2]
[334900825,1723633839178,-9435.70289252,0.00013,2]
[334900826,1723633839188,-150.112233,0.00013,2]
[334900827,1723633839199,-500.0,0.00013,2]
[334900828,1723633839209,-1010.0,0.00013,2]
[334900829,1723633839219,-150.112236,0.00013,2]
[334900830,1723633839228,-300.0,0.000131,2]
[334900831,1723633839240,-150.112233,0.000131,2]
[334900832,1723633839251,-184.08892,0.00013144,2]
[334900833,1723633839260,-152.624329,0.00013144,2]
[334900834,1723633839269,-220.382852,0.00013144,2]
[334900835,1723633839278,-256.888541,0.00013144,2]
[334900836,1723633839288,-167.603257,0.00013144,2]
[334900837,1723633839298,-281.725623,0.00013144,2]
[334900838,1723633839307,-324.171123,0.00013144,2]
[334900839,1723633839317,-150.112233,0.000132,2]
[334900840,1723633839327,-150.112233,0.000132,2]
[334900841,1723633839336,-150.112233,0.000132,2]
[334900842,1723633839346,-1000.0,0.00013276,2]
[334900843,1723633839356,-150.112233,0.000133,2]
[334900844,1723633839366,-220.382852,0.00013304,2]
[334900845,1723633839376,-256.888541,0.00013304,2]
[334900846,1723633839386,-281.725623,0.00013304,2]
[334900847,1723633839395,-324.171123,0.00013304,2]
[334900848,1723633839406,-1000.0,0.00013304,2]
[334900849,1723633839416,-810.98237385,0.0001333,2]
[334900850,1723633839426,-810.98237385,0.0001333,2]
[334900851,1723633839435,-1000.0,0.00013331,2]
[334900852,1723633839447,-1000.0,0.00013358,2]
[334900853,1723633839456,-1000.0,0.00013386,2]
[334900854,1723633839466,-150.112233,0.000134,2]
[334900855,1723633839476,-300.0,0.000134,2]
[334900856,1723633839485,-150.112233,0.000134,2]
[334900857,1723633839494,-162.81928945,0.00013412,2]
[334900858,1723633839504,-1000.0,0.00013413,2]
[334900859,1723633839513,-4918.63,0.00013424,2]
[334900860,1723633839523,-4918.63,0.00013424,2]
[334900861,1723633839535,-4918.63,0.00013424,2]
[334900862,1723633839546,-4918.63,0.00013424,2]
[334900863,1723633839555,-4918.63,0.00013424,2]
[334900864,1723633839565,-4918.63,0.00013424,2]
[334900865,1723633839574,-4918.63,0.00013424,2]
[334900866,1723633839584,-4918.63,0.00013424,2]
[334900867,1723633839593,-4918.63,0.00013424,2]
[334900868,1723633839603,-4918.63,0.00013424,2]
[334900869,1723633839612,-4918.63,0.00013424,2]
[334900870,1723633839776,-4918.63,0.00013424,2]
[334900871,1723633839788,-4918.63,0.00013424,2]
[334900872,1723633839797,-4918.63,0.00013424,2]
[334900873,1723633839807,-4918.63,0.00013424,2]
[334900874,1723633839817,-4918.63,0.00013424,2]
[334900875,1723633839826,-4918.63,0.00013424,2]
[334900876,1723633839837,-4918.63,0.00013424,2]
[334900877,1723633839849,-4918.63,0.00013424,2]
[334900878,1723633839860,-4918.63,0.00013424,2]
[334900880,1723633839871,-4918.63,0.00013424,2]
[334900881,1723633839881,-4918.63,0.00013424,2]
[334900882,1723633839890,-4918.63,0.00013424,2]
[334900883,1723633839900,-4918.64150296,0.00013424,2]
[334900884,1723633839913,-1000.0,0.00013441,2]
[334900885,1723633839925,-184.08892,0.00013464,2]
[334900886,1723633839935,-152.624329,0.00013464,2]
[334900887,1723633839944,-220.382852,0.00013464,2]
[334900888,1723633839954,-256.888541,0.00013464,2]
[334900889,1723633839964,-167.603257,0.00013464,2]
[334900890,1723633839974,-281.725623,0.00013464,2]
[334900891,1723633839983,-324.171123,0.00013464,2]
[334900892,1723633839992,-1000.0,0.00013468,2]
[334900893,1723633840002,-2711.31124135,0.00013494,2]
[334900894,1723633840012,-2711.31124135,0.00013494,2]
[334900895,1723633840021,-1000.0,0.00013495,2]
[334900896,1723633840032,-150.112233,0.000135,2]
[334900897,1723633840041,-2003.42446477,0.000135,2]
[334900898,1723633840053,-150.112233,0.000135,2]
[334900899,1723633840063,-150.112233,0.000135,2]
[334900900,1723633840072,-154.76012181,0.00013519,2]
[334900901,1723633840081,-661.09964631,0.00013519,2]
[334900902,1723633840091,-1000.0,0.00013523,2]
[334900903,1723633840100,-800.0,0.00013534,2]
[334900904,1723633840110,-1000.0,0.0001355,2]
[334900905,1723633840119,-1000.0,0.00013578,2]
[334900906,1723633840129,-154.76012181,0.00013586,2]
[334900907,1723633840138,-156.65353163,0.00013599,2]
[334900908,1723633840147,-150.112233,0.000136,2]
[334900909,1723633840159,-1000.0,0.00013605,2]
[334900910,1723633840168,-154.79103211,0.00013631,2]
[334900911,1723633840178,-494.87154082,0.00013631,2]
[334900912,1723633840187,-1000.0,0.00013632,2]
[334900913,1723633840197,-2165.20291982,0.00013637,2]
[334900914,1723633840207,-158.01490399,0.00013659,2]
[334900915,1723633840216,-1000.0,0.0001366,2]
[334900916,1723633840226,-1114.25211996,0.00013687,2]
[334900917,1723633840235,-1014.25056727,0.00013696,2]
[334900918,1723633840244,-260.27979924,0.00013698,2]
[334900919,1723633840254,-500.0,0.00013698,2]
[334900920,1723633840263,-584.31511629,0.00013698,2]
[334900921,1723633840272,-405.4467408,0.00013698,2]
[334900923,1723633840282,-313.43181797,0.00013698,2]
[334900925,1723633840291,-500.0,0.00013698,2]
[334900927,1723633840301,-514.85015897,0.00013698,2]
[334900929,1723633840311,-500.0,0.00013698,2]
[334900932,1723633840321,-500.0,0.00013698,2]
[334900934,1723633840332,-500.0,0.00013698,2]
[334900936,1723633840342,-203.61399108,0.00013698,2]
[334900938,1723633840352,-500.0,0.00013698,2]
[334900940,1723633840362,-500.0,0.00013698,2]
[334900942,1723633840372,-500.0,0.00013698,2]
[334900944,1723633840382,-500.0,0.00013698,2]
[334900946,1723633840391,-376.27355811,0.00013698,2]
[334900948,1723633840400,-500.0,0.00013698,2]
[334900950,1723633840415,-500.0,0.00013698,2]
[334900952,1723633840425,-500.0,0.00013698,2]
[334900954,1723633840435,-500.0,0.00013698,2]
[334900956,1723633840447,-500.0,0.00013698,2]
[334900958,1723633840457,-500.0,0.00013698,2]
[334900959,1723633840467,-500.0,0.00013698,2]
[334900960,1723633840477,-600.0,0.00013698,2]
[334900961,1723633840486,-500.0,0.00013698,2]
[334900962,1723633840496,-500.0,0.00013698,2]
[334900963,1723633840505,-500.0,0.00013698,2]
[334900964,1723633840514,-500.0,0.00013698,2]
[334900965,1723633840523,-500.0,0.00013698,2]
[334900966,1723633840533,-513.18198362,0.00013698,2]
[334900967,1723633840544,-505.53787918,0.00013698,2]
[334900968,1723633840553,-500.0,0.00013698,2]
[334900969,1723633840563,-500.0,0.00013698,2]
[334900970,1723633840573,-500.0,0.00013698,2]
[334900971,1723633840582,-500.0,0.00013698,2]
[334900972,1723633840591,-500.0,0.00013698,2]
[334900973,1723633840601,-500.0,0.00013698,2]
[334900974,1723633840611,-613.32901744,0.00013698,2]
[334900975,1723633840621,-500.0,0.00013698,2]
[334900976,1723633840631,-500.0,0.00013698,2]
[334900977,1723633840642,-500.0,0.00013698,2]
[334900978,1723633840652,-509.44057132,0.00013698,2]
[334900979,1723633840665,-505.85005909,0.00013698,2]
[334900980,1723633840675,-500.0,0.00013698,2]
[334900981,1723633840684,-500.0,0.00013698,2]
[334900982,1723633840694,-500.0,0.00013698,2]
[334900983,1723633840703,-500.0,0.00013698,2]
[334900984,1723633840713,-201.96184611,0.00013698,2]
[334900985,1723633840724,-500.0,0.00013698,2]
[334900986,1723633840734,-500.0,0.00013698,2]
[334900987,1723633840747,-500.0,0.00013698,2]
[334900988,1723633840757,-243.26631301,0.00013698,2]
[334900989,1723633840767,-500.0,0.00013698,2]
[334900990,1723633840780,-500.0,0.00013698,2]
[334900991,1723633840789,-627.10781166,0.00013698,2]
[334900992,1723633840798,-283.74710251,0.00013698,2]
[334900993,1723633840808,-500.0,0.00013698,2]
[334900994,1723633840818,-500.0,0.00013698,2]
[334900995,1723633840828,-500.0,0.00013698,2]
[334900996,1723633840846,-500.0,0.00013698,2]
[334900997,1723633840861,-500.0,0.00013698,2]
[334900998,1723633840872,-203.65312641,0.00013698,2]
[334900999,1723633840882,-500.0,0.00013698,2]
[334901000,1723633840892,-500.0,0.00013698,2]
[334901001,1723633840902,-500.0,0.00013698,2]
[334901002,1723633840913,-500.0,0.00013698,2]
[334901003,1723633840923,-500.0,0.00013698,2]
[334901004,1723633840932,-501.46686431,0.00013698,2]
[334901005,1723633840943,-596.27601028,0.00013698,2]
[334901006,1723633840952,-502.55123626,0.00013698,2]
[334901007,1723633840962,-503.80537721,0.00013698,2]
[334901008,1723633840972,-500.0,0.00013698,2]
[334901009,1723633840982,-500.0,0.00013698,2]
[334901010,1723633840992,-500.0,0.00013698,2]
[334901011,1723633841003,-500.0,0.00013698,2]
[334901012,1723633841013,-500.0,0.00013698,2]
[334901013,1723633841023,-502.7630188,0.00013698,2]
[334901014,1723633841033,-500.0,0.00013698,2]
[334901015,1723633841043,-500.0,0.00013698,2]
[334901016,1723633841052,-500.0,0.00013698,2]
[334901017,1723633841062,-600.36434449,0.00013698,2]
[334901018,1723633841074,-502.07300744,0.00013698,2]
[334901019,1723633841083,-500.0,0.00013698,2]
[334901020,1723633841093,-500.0,0.00013698,2]
[334901021,1723633841102,-500.0,0.00013698,2]
[334901022,1723633841112,-500.0,0.00013698,2]
[334901023,1723633841123,-500.0,0.00013698,2]
[334901024,1723633841132,-500.0,0.00013698,2]
[334901025,1723633841142,-500.0,0.00013698,2]
[334901026,1723633841153,-500.0,0.00013698,2]
[334901027,1723633841163,-500.0,0.00013698,2]
[334901028,1723633841175,-500.0,0.00013698,2]
[334901029,1723633841185,-500.0,0.00013698,2]
[334901030,1723633841194,-500.0,0.00013698,2]
[334901031,1723633841204,-500.0,0.00013698,2]
[334901032,1723633841214,-500.0,0.00013698,2]
[334901033,1723633841224,-500.0,0.00013698,2]
[334901034,1723633841234,-500.0,0.00013698,2]
[334901035,1723633841244,-500.0,0.00013698,2]
[334901036,1723633841254,-500.0,0.00013698,2]
[334901037,1723633841264,-500.0,0.00013698,2]
[334901038,1723633841274,-500.0,0.00013698,2]
[334901039,1723633841284,-500.0,0.00013698,2]
[334901040,1723633841294,-500.0,0.00013698,2]
[334901041,1723633841304,-500.0,0.00013698,2]
[334901042,1723633841314,-250.29322405,0.00013698,2]
[334901043,1723633841325,-500.0,0.00013698,2]
[334901044,1723633841335,-500.0,0.00013698,2]
[334901045,1723633841344,-401.44563668,0.00013698,2]
[334901046,1723633841354,-570.00326452,0.00013698,2]
[334901047,1723633841364,-500.0,0.00013698,2]
[334901048,1723633841374,-500.0,0.00013698,2]
[334901049,1723633841384,-500.0,0.00013698,2]
[334901050,1723633841394,-501.88970458,0.00013698,2]
[334901051,1723633841403,-431.33918707,0.00013698,2]
[334901052,1723633841413,-500.0,0.00013698,2]
[334901053,1723633841422,-428.16434568,0.00013698,2]
[334901054,1723633841432,-500.0,0.00013698,2]
[334901055,1723633841442,-500.0,0.00013698,2]
[334901056,1723633841451,-155.78332484,0.00013698,2]
[334901057,1723633841461,-500.0,0.00013698,2]
[334901058,1723633841472,-395.45249404,0.00013698,2]
[334901059,1723633841482,-500.0,0.00013698,2]
[334901060,1723633841491,-500.0,0.00013698,2]
[334901061,1723633841501,-500.0,0.00013698,2]
[334901062,1723633841510,-500.0,0.00013698,2]
[334901063,1723633841520,-502.03875762,0.00013698,2]
[334901064,1723633841530,-600.70829186,0.00013698,2]
[334901065,1723633841540,-500.0,0.00013698,2]
[334901066,1723633841549,-504.72517307,0.00013698,2]
[334901067,1723633841558,-500.0,0.00013698,2]
[334901068,1723633841568,-500.0,0.00013698,2]
[334901069,1723633841578,-500.0,0.00013698,2]
[334901070,1723633841588,-500.0,0.00013698,2]
[334901071,1723633841597,-500.0,0.00013698,2]
[334901072,1723633841608,-503.25094454,0.00013698,2]
[334901073,1723633841618,-501.29999261,0.00013698,2]
[334901074,1723633841628,-500.0,0.00013698,2]
[334901075,1723633841638,-500.0,0.00013698,2]
[334901076,1723633841647,-500.0,0.00013698,2]
[334901077,1723633841658,-501.85928657,0.00013698,2]
[334901078,1723633841668,-500.0,0.00013698,2]
[334901079,1723633841678,-500.0,0.00013698,2]
[334901080,1723633841687,-500.0,0.00013698,2]
[334901081,1723633841697,-500.0,0.00013698,2]
[334901082,1723633841706,-500.0,0.00013698,2]
[334901083,1723633841716,-500.0,0.00013698,2]
[334901084,1723633841726,-500.0,0.00013698,2]
[334901085,1723633841735,-500.0,0.00013698,2]
[334901086,1723633841745,-500.0,0.00013698,2]
[334901087,1723633841754,-502.05587921,0.00013698,2]
[334901088,1723633841767,-500.0,0.00013698,2]
[334901089,1723633841777,-500.0,0.00013698,2]
[334901090,1723633841786,-500.0,0.00013698,2]
[334901091,1723633841795,-500.0,0.00013698,2]
[334901092,1723633841806,-500.0,0.00013698,2]
[334901093,1723633841816,-500.0,0.00013698,2]
[334901094,1723633841826,-239.62794223,0.00013698,2]
[334901095,1723633841834,-500.0,0.00013698,2]
[334901096,1723633841845,-500.0,0.00013698,2]
[334901097,1723633841855,-509.35381299,0.00013698,2]
[334901098,1723633841864,-500.0,0.00013698,2]
[334901099,1723633841874,-500.0,0.00013698,2]
[334901100,1723633841883,-500.0,0.00013698,2]
[334901101,1723633841892,-500.0,0.00013698,2]
[334901102,1723633841902,-500.0,0.00013698,2]
[334901103,1723633841913,-500.0,0.00013698,2]
[334901104,1723633841922,-502.55692101,0.00013698,2]
[334901105,1723633841930,-500.0,0.00013698,2]
[334901106,1723633841941,-500.0,0.00013698,2]
[334901107,1723633841951,-500.0,0.00013698,2]
[334901108,1723633841961,-500.0,0.00013698,2]
[334901109,1723633841971,-500.0,0.00013698,2]
[334901110,1723633841980,-511.06656472,0.00013698,2]
[334901111,1723633841990,-500.0,0.00013698,2]
[334901112,1723633842000,-500.0,0.00013698,2]
[334901113,1723633842009,-500.0,0.00013698,2]
[334901114,1723633842018,-500.0,0.00013698,2]
[334901115,1723633842027,-500.0,0.00013698,2]
[334901116,1723633842036,-500.0,0.00013698,2]
[334901117,1723633842045,-500.0,0.00013698,2]
[334901118,1723633842171,-500.0,0.00013698,2]
[334901119,1723633842181,-502.26505713,0.00013698,2]
[334901120,1723633842190,-500.0,0.00013698,2]
[334901121,1723633842200,-500.0,0.00013698,2]
[334901122,1723633842210,-506.79907527,0.00013698,2]
[334901123,1723633842219,-500.0,0.00013698,2]
[334901124,1723633842228,-500.0,0.00013698,2]
[334901125,1723633842239,-500.0,0.00013698,2]
[334901126,1723633842250,-500.0,0.00013698,2]
[334901127,1723633842261,-501.27580743,0.00013698,2]
[334901128,1723633842272,-500.0,0.00013698,2]
[334901129,1723633842283,-546.27050067,0.00013698,2]
[334901130,1723633842294,-500.0,0.00013698,2]
[334901131,1723633842305,-500.0,0.00013698,2]
[334901132,1723633842318,-500.0,0.00013698,2]
[334901133,1723633842330,-500.0,0.00013698,2]
[334901134,1723633842341,-506.12076137,0.00013698,2]
[334901135,1723633842350,-500.0,0.00013698,2]
[334901136,1723633842361,-586.67552384,0.00013698,2]
[334901137,1723633842372,-500.0,0.00013698,2]
[334901138,1723633842383,-500.0,0.00013698,2]
[334901139,1723633842395,-500.0,0.00013698,2]
[334901140,1723633842405,-506.6025751,0.00013698,2]
[334901141,1723633842415,-500.0,0.00013698,2]
[334901142,1723633842425,-500.0,0.00013698,2]
[334901143,1723633842435,-500.0,0.00013698,2]
[334901144,1723633842444,-500.0,0.00013698,2]
[334901145,1723633842454,-500.0,0.00013698,2]
[334901146,1723633842464,-508.94656301,0.00013698,2]
[334901147,1723633842475,-500.0,0.00013698,2]
[334901148,1723633842485,-506.6653325,0.00013698,2]
[334901149,1723633842497,-500.0,0.00013698,2]
[334901150,1723633842508,-500.0,0.00013698,2]
[334901151,1723633842518,-500.0,0.00013698,2]
[334901152,1723633842530,-500.0,0.00013698,2]
[334901153,1723633842540,-516.09364775,0.00013698,2]
[334901154,1723633842551,-500.0,0.00013698,2]
[334901155,1723633842563,-500.0,0.00013698,2]
[334901156,1723633842572,-500.0,0.00013698,2]
[334901157,1723633842585,-509.37128122,0.00013698,2]
[334901158,1723633842596,-500.0,0.00013698,2]
[334901159,1723633842607,-500.0,0.00013698,2]
[334901160,1723633842618,-500.0,0.00013698,2]
[334901161,1723633842628,-500.0,0.00013698,2]
[334901162,1723633842638,-500.0,0.00013698,2]
[334901163,1723633842647,-500.0,0.00013698,2]
[334901164,1723633842658,-500.0,0.00013698,2]
[334901165,1723633842669,-500.0,0.00013698,2]
[334901166,1723633842681,-507.0401322,0.00013698,2]
[334901167,1723633842692,-500.0,0.00013698,2]
[334901168,1723633842702,-545.33902437,0.00013698,2]
[334901169,1723633842713,-500.0,0.00013698,2]
[334901170,1723633842722,-500.0,0.00013698,2]
[334901171,1723633842732,-500.0,0.00013698,2]
[334901172,1723633842742,-506.32587022,0.00013698,2]
[334901173,1723633842752,-500.0,0.00013698,2]
[334901174,1723633842762,-500.0,0.00013698,2]
[334901175,1723633842776,-500.0,0.00013698,2]
[334901176,1723633842786,-500.0,0.00013698,2]
[334901177,1723633842795,-500.0,0.00013698,2]
[334901178,1723633842807,-500.0,0.00013698,2]
[334901179,1723633842819,-500.0,0.00013698,2]
[334901180,1723633842830,-500.0,0.00013698,2]
[334901181,1723633842842,-500.0,0.00013698,2]
[334901182,1723633842854,-500.0,0.00013698,2]
[334901183,1723633842865,-500.0,0.00013698,2]
[334901184,1723633842874,-500.0,0.00013698,2]
[334901185,1723633842884,-504.37159975,0.00013698,2]
[334901186,1723633842893,-507.15897505,0.00013698,2]
[334901187,1723633842903,-500.0,0.00013698,2]
[334901188,1723633842915,-500.0,0.00013698,2]
[334901189,1723633842925,-500.0,0.00013698,2]
[334901190,1723633842935,-500.0,0.00013698,2]
[334901191,1723633842945,-500.0,0.00013698,2]
[334901192,1723633842954,-500.0,0.00013698,2]
[334901193,1723633842964,-500.0,0.00013698,2]
[334901194,1723633842974,-521.93036736,0.00013698,2]
[334901195,1723633842983,-500.0,0.00013698,2]
[334901196,1723633842993,-500.0,0.00013698,2]
[334901198,1723633843002,-500.0,0.00013698,2]
[334901199,1723633843011,-500.0,0.00013698,2]
[334901200,1723633843022,-172.99687062,0.00013698,2]
[334901201,1723633843031,-500.0,0.00013698,2]
[334901202,1723633843040,-503.97455661,0.00013698,2]
[334901203,1723633843051,-500.0,0.00013698,2]
[334901204,1723633843061,-500.0,0.00013698,2]
[334901205,1723633843070,-500.0,0.00013698,2]
[334901206,1723633843080,-500.0,0.00013698,2]
[334901207,1723633843089,-500.0,0.00013698,2]
[334901208,1723633843099,-500.0,0.00013698,2]
[334901209,1723633843110,-500.0,0.00013698,2]
[334901210,1723633843119,-500.0,0.00013698,2]
[334901211,1723633843128,-500.0,0.00013698,2]
[334901212,1723633843139,-500.0,0.00013698,2]
[334901213,1723633843148,-500.0,0.00013698,2]
[334901215,1723633843158,-500.0,0.00013698,2]
[334901216,1723633843167,-520.68,0.00013698,2]
[334901217,1723633843177,-500.0,0.00013698,2]
[334901218,1723633843188,-500.0,0.00013698,2]
[334901219,1723633843198,-500.0,0.00013698,2]
[334901220,1723633843208,-201.75317374,0.00013698,2]
[334901222,1723633843218,-1261.22,0.00013698,2]
[334901224,1723633843229,-500.0,0.00013698,2]
[334901226,1723633843239,-500.0,0.00013698,2]
[334901228,1723633843249,-500.0,0.00013698,2]
[334901229,1723633843265,-500.0,0.00013698,2]
[334901230,1723633843281,-500.0,0.00013698,2]
[334901231,1723633843296,-500.0,0.00013698,2]
[334901232,1723633843308,-500.0,0.00013698,2]
[334901233,1723633843321,-500.0,0.00013698,2]
[334901234,1723633843335,-517.56000118,0.00013698,2]
[334901235,1723633843350,-507.61307672,0.00013698,2]
[334901236,1723633843365,-500.0,0.00013698,2]
[334901237,1723633843379,-500.0,0.00013698,2]
[334901238,1723633843393,-433.69131351,0.00013698,2]
[334901239,1723633843409,-501.80801126,0.00013698,2]
[334901240,1723633843422,-500.0,0.00013698,2]
[334901242,1723633843436,-500.0,0.00013698,2]
[334901245,1723633843450,-551.46246339,0.00013698,2]
[334901247,1723633843465,-500.0,0.00013698,2]
[334901248,1723633843480,-508.53585882,0.00013698,2]
[334901249,1723633843492,-500.0,0.00013698,2]
[334901250,1723633843504,-500.0,0.00013698,2]
[334901251,1723633843517,-500.0,0.00013698,2]
[334901252,1723633843531,-500.0,0.00013698,2]
[334901253,1723633843546,-511.82518457,0.00013698,2]
[334901254,1723633843562,-387.55479876,0.00013698,2]
[334901255,1723633843576,-506.45911919,0.00013698,2]
[334901256,1723633843591,-500.0,0.00013698,2]
[334901257,1723633843606,-500.0,0.00013698,2]
[334901258,1723633843617,-500.0,0.00013698,2]
[334901259,1723633843629,-500.0,0.00013698,2]
[334901260,1723633843645,-500.0,0.00013698,2]
[334901261,1723633843659,-500.0,0.00013698,2]
[334901262,1723633843673,-500.0,0.00013698,2]
[334901263,1723633843685,-500.0,0.00013698,2]
[334901264,1723633843696,-500.0,0.00013698,2]
[334901265,1723633843710,-500.0,0.00013698,2]
[334901266,1723633843724,-504.42285475,0.00013698,2]
[334901267,1723633843736,-504.72300314,0.00013698,2]
[334901268,1723633843748,-505.62660807,0.00013698,2]
[334901269,1723633843759,-500.0,0.00013698,2]
[334901270,1723633843774,-500.0,0.00013698,2]
[334901271,1723633843786,-511.15837611,0.00013698,2]
[334901272,1723633843799,-510.28913291,0.00013698,2]
[334901273,1723633843811,-500.0,0.00013698,2]
[334901274,1723633843823,-500.0,0.00013698,2]
[334901275,1723633843837,-512.31899189,0.00013698,2]
[334901276,1723633843851,-500.0,0.00013698,2]
[334901277,1723633843864,-500.0,0.00013698,2]
[334901278,1723633843877,-517.00644189,0.00013698,2]
[334901279,1723633843888,-507.13653321,0.00013698,2]
[334901280,1723633843900,-503.75540415,0.00013698,2]
[334901281,1723633843913,-500.0,0.00013698,2]
[334901282,1723633843924,-500.0,0.00013698,2]
[334901283,1723633843938,-500.0,0.00013698,2]
[334901284,1723633843950,-500.0,0.00013698,2]
[334901285,1723633843962,-500.0,0.00013698,2]
[334901286,1723633843974,-500.0,0.00013698,2]
[334901287,1723633843987,-500.0,0.00013698,2]
[334901288,1723633843999,-508.37302804,0.00013698,2]
[334901289,1723633844011,-500.0,0.00013698,2]
[334901290,1723633844023,-506.73965735,0.00013698,2]
[334901291,1723633844035,-500.0,0.00013698,2]
[334901292,1723633844050,-500.0,0.00013698,2]
[334901293,1723633844064,-510.24416344,0.00013698,2]
[334901294,1723633844077,-508.07154361,0.00013698,2]
[334901295,1723633844089,-500.0,0.00013698,2]
[334901296,1723633844101,-500.0,0.00013698,2]
[334901297,1723633844113,-500.0,0.00013698,2]
[334901298,1723633844125,-500.0,0.00013698,2]
[334901299,1723633844137,-500.0,0.00013698,2]
[334901300,1723633844149,-500.0,0.00013698,2]
[334901301,1723633844164,-500.0,0.00013698,2]
[334901302,1723633844185,-761.24,0.00013698,2]
[334901303,1723633844197,-500.0,0.00013698,2]
[334901304,1723633844210,-500.0,0.00013698,2]
[334901305,1723633844223,-500.0,0.00013698,2]
[334901306,1723633844234,-500.0,0.00013698,2]
[334901307,1723633844246,-500.0,0.00013698,2]
[334901308,1723633844258,-500.0,0.00013698,2]
[334901309,1723633844271,-752.29,0.00013698,2]
[334901310,1723633844283,-509.43081434,0.00013698,2]
[334901311,1723633844295,-500.0,0.00013698,2]
[334901312,1723633844307,-500.0,0.00013698,2]
[334901313,1723633844319,-500.0,0.00013698,2]
[334901314,1723633844331,-500.0,0.00013698,2]
[334901315,1723633844343,-500.0,0.00013698,2]
[334901316,1723633844356,-500.0,0.00013698,2]
[334901317,1723633844368,-152.446725,0.00013698,2]
[334901318,1723633844380,-879.15,0.00013698,2]
[334901319,1723633844393,-500.0,0.00013698,2]
[334901320,1723633844405,-500.0,0.00013698,2]
[334901321,1723633844418,-500.0,0.00013698,2]